fUSD/lending_fUSD_20250309
["ID","MTS","AMOUNT","RATE_DAILY","PERIOD"]
[355706477,1741486248102,-206.78465528,9.993e-05,2]
[355706478,1741486248111,-1316.38,9.993e-05,2]
[355706479,1741486248120,-500.0,9.993e-05,2]
[355706480,1741486248130,-500.0,9.993e-05,2]
[355706481,1741486248139,-500.0,9.993e-05,2]
[355706482,1741486248148,-425.83534472,9.994e-05,2]
[355706483,1741486248159,-82.75860141,9.994e-05,2]
[355706484,1741486248169,-472.16683035,9.994e-05,2]
[355706485,1741486248180,-45.14733709,9.994e-05,2]
[355706486,1741486248189,-500.0,9.994e-05,2]
[355706487,1741486248198,-511.82541407,9.994e-05,2]
[355706488,1741486248208,-175.79982254,9.995e-05,2]
[355706489,1741486248218,-500.32471163,9.995e-05,2]
[355706490,1741486248231,-299.33363244,9.995e-05,2]
[355706491,1741486248240,-500.68662532,9.995e-05,2]
[355706492,1741486248249,-500.93939778,9.995e-05,2]
[355706493,1741486248259,-511.79437246,9.995e-05,2]
[355706494,1741486248270,-502.13974662,9.995e-05,2]
[355706495,1741486248280,-502.39798174,9.995e-05,2]
[355706496,1741486248289,-445.40524612,9.995e-05,2]
[355706497,1741486248301,-54.83213321,9.995e-05,2]
[355706498,1741486248310,-500.27717716,9.995e-05,2]
[355706499,1741486248319,-461.93761237,9.995e-05,2]
[355706500,1741486248328,-150.15611812,9.995e-05,2]
[355706501,1741486248337,-943.0177424,9.996e-05,2]
[355706502,1741486248346,-4718.1261026,9.996e-05,2]
[355706503,1741486248356,-842.103595,9.996e-05,2]
[355706504,1741486248365,-500.0,9.996e-05,2]
[355706505,1741486248374,-500.0,9.996e-05,2]
[355706506,1741486248384,-500.0,9.996e-05,2]
[355706507,1741486248394,-285.734545,9.996e-05,2]
[355706508,1741486248404,-500.0,9.996e-05,2]
[355706509,1741486248413,-500.0,9.996e-05,2]
[355706510,1741486248422,-500.0,9.996e-05,2]
[355706511,1741486248432,-500.0,9.996e-05,2]
[355706512,1741486248441,-500.0,9.996e-05,2]
[355706513,1741486248626,-205.03885019,9.996e-05,2]
[355706514,1741486248635,-500.0,9.996e-05,2]
[355706515,1741486248645,-500.0,9.996e-05,2]
[355706516,1741486248654,-2913.36543803,9.997e-05,2]
[355706517,1741486248666,-1729.24609705,9.997e-05,2]
[355706518,1741486248677,-16416.58327,9.997e-05,2]
[355706519,1741486248688,-440.2255406,9.997e-05,2]
[355706520,1741486248707,-710.81898075,9.997e-05,2]
[355706521,1741486248718,-2105.50608183,9.997e-05,2]
[355706522,1741486248729,-5012.31778944,9.997e-05,2]
[355706524,1741486838756,1832.9055902,0.0002,120]
[355706525,1741487135490,3700.0,0.00028,120]
[355706578,1741487431947,-1000.0,8.219e-05,2]
[355706579,1741487431958,-638.65289464,8.219e-05,2]
[355706580,1741487431978,-421.30710536,8.219e-05,2]
[355706581,1741487431988,-163.33,8.485e-05,2]
[355706582,1741487431998,-2495.04,8.568e-05,2]
[355706583,1741487432007,-151.73,8.825e-05,2]
[355706584,1741487432017,-151.73,8.86e-05,2]
[355706585,1741487432027,-151.73,8.895e-05,2]
[355706586,1741487432036,-23900.0,8.911e-05,2]
[355706587,1741487432046,-151.73,8.931e-05,2]
[355706588,1741487432056,-151.73,8.966e-05,2]
[355706589,1741487432066,-517.76,8.968e-05,2]
[355706590,1741487432077,-1000.0,8.975e-05,2]
[355706591,1741487432087,-151.73,9.001e-05,2]
[355706592,1741487432097,-900.76,9.015e-05,2]
[355706593,1741487432108,-250.0,9.033e-05,2]
[355706594,1741487432118,-151.73,9.037e-05,2]
[355706595,1741487432129,-150.0,9.041e-05,2]
[355706596,1741487432140,-150.0,9.041e-05,2]
[355706597,1741487432151,-150.0,9.041e-05,2]
[355706598,1741487432161,-300.0,9.048e-05,2]
[355706599,1741487432172,-151.73,9.072e-05,2]
[355706600,1741487432182,-151.73,9.107e-05,2]
[355706601,1741487432192,-151.73,9.143e-05,2]
[355706602,1741487432203,-151.73,9.178e-05,2]
[355706603,1741487432213,-151.73,9.213e-05,2]
[355706604,1741487432226,-168.8,9.233e-05,2]
[355706605,1741487432237,-150.0,9.248e-05,2]
[355706606,1741487432253,-151.73,9.248e-05,2]
[355706607,1741487432263,-151.73,9.284e-05,2]
[355706608,1741487432274,-151.73,9.319e-05,2]
[355706609,1741487432285,-151.73,9.354e-05,2]
[355706610,1741487432295,-334.72,9.378e-05,2]
[355706611,1741487432306,-888.95,9.441e-05,2]
[355706612,1741487432317,-999.99,9.441e-05,2]
[355706613,1741487432327,-150.99,9.441e-05,2]
[355706614,1741487432338,-990.69,9.478e-05,2]
[355706615,1741487432350,-990.69,9.478e-05,2]
[355706616,1741487432360,-990.69,9.478e-05,2]
[355706618,1741487432371,-440.5,9.578e-05,2]
[355706620,1741487432382,-151.87,9.578e-05,2]
[355706621,1741487432393,-344.75,9.578e-05,2]
[355706622,1741487432403,-990.69,9.578e-05,2]
[355706623,1741487432414,-1582.48824301,9.694e-05,2]
[355706624,1741487432425,-1582.48824301,9.791e-05,2]
[355706625,1741487432435,-2464.8506,9.794e-05,2]
[355706626,1741487432446,-2817.6759,9.891e-05,2]
[355706627,1741487432457,-500.0,9.891e-05,2]
[355706628,1741487432467,-1010.30882812,9.891e-05,2]
[355706629,1741487432483,-1209.92508409,9.891e-05,2]
[355706630,1741487432496,-1158.5934276,9.891e-05,2]
[355706631,1741487432509,-3148.97995,9.891e-05,2]
[355706632,1741487432549,-541.02982009,9.891e-05,2]
[355706636,1741487437835,-8513.12397796,9.891e-05,2]
[355706637,1741487437846,-29836.7664,9.892e-05,2]
[355706638,1741487437855,-261.7044,9.896e-05,2]
[355706639,1741487437866,-5000.0,9.896e-05,2]
[355706640,1741487437876,-358.6478,9.896e-05,2]
[355706641,1741487437885,-213.1609,9.897e-05,2]
[355706642,1741487437895,-783.4064,9.897e-05,2]
[355706643,1741487437905,-566.537,9.897e-05,2]
[355706644,1741487437914,-163.33,9.899e-05,2]
[355706645,1741487437924,-1876.201,9.938e-05,2]
[355706646,1741487437934,-1000.0,9.944e-05,2]
[355706647,1741487437944,-150.627779,9.973e-05,2]
[355706648,1741487437954,-500.0,9.991e-05,2]
[355706649,1741487437964,-500.0,9.991e-05,2]
[355706650,1741487437974,-500.0,9.991e-05,2]
[355706651,1741487437984,-1261.53,9.991e-05,2]
[355706652,1741487437994,-500.0,9.991e-05,2]
[355706653,1741487438003,-500.0,9.991e-05,2]
[355706654,1741487438012,-500.0,9.991e-05,2]
[355706655,1741487438022,-500.0,9.994e-05,2]
[355706656,1741487438031,-500.0,9.995e-05,2]
[355706657,1741487438041,-500.0,9.995e-05,2]
[355706658,1741487438050,-500.0,9.995e-05,2]
[355706659,1741487438060,-500.0,9.995e-05,2]
[355706660,1741487438070,-500.0,9.995e-05,2]
[355706661,1741487438079,-500.0,9.995e-05,2]
[355706662,1741487438088,-500.0,9.995e-05,2]
[355706663,1741487438099,-500.0,9.995e-05,2]
[355706664,1741487438108,-258.08259855,9.995e-05,2]
[355706665,1741487438118,-267.1329522,9.995e-05,2]
[355706666,1741487438128,-500.0,9.995e-05,2]
[355706667,1741487438138,-500.0,9.995e-05,2]
[355706668,1741487438147,-500.0,9.995e-05,2]
[355706669,1741487438157,-513.17762687,9.995e-05,2]
[355706670,1741487438166,-500.0,9.995e-05,2]
[355706671,1741487438177,-515.16813318,9.995e-05,2]
[355706672,1741487438186,-500.0,9.995e-05,2]
[355706673,1741487438196,-500.0,9.995e-05,2]
[355706674,1741487438206,-500.0,9.995e-05,2]
[355706675,1741487438215,-235.69257811,9.995e-05,2]
[355706676,1741487438227,-500.0,9.995e-05,2]
[355706677,1741487438237,-340.79372885,9.995e-05,2]
[355706678,1741487438247,-500.0,9.995e-05,2]
[355706679,1741487438258,-500.0,9.995e-05,2]
[355706680,1741487438269,-1487.233587,9.995e-05,2]
[355706681,1741487438280,-252.39331481,9.995e-05,2]
[355706682,1741487438291,-500.0,9.995e-05,2]
[355706683,1741487438301,-154.363377,9.995e-05,2]
[355706684,1741487438311,-164.412339,9.995e-05,2]
[355706685,1741487438321,-515.5778645,9.995e-05,2]
[355706686,1741487438331,-500.0,9.995e-05,2]
[355706687,1741487438342,-512.89693972,9.995e-05,2]
[355706688,1741487438353,-500.0,9.995e-05,2]
[355706689,1741487438364,-500.0,9.995e-05,2]
[355706690,1741487438375,-198.03989059,9.995e-05,2]
[355706691,1741487438394,-319.56768211,9.995e-05,2]
[355706692,1741487438404,-1157.094606,9.995e-05,2]
[355706693,1741487438414,-295.48594583,9.995e-05,2]
[355706694,1741487438426,-204.51405417,9.995e-05,2]
[355706695,1741487438436,-500.0,9.995e-05,2]
[355706697,1741487438447,-745.91,9.995e-05,2]
[355706699,1741487438456,-647.82,9.995e-05,2]
[355706701,1741487438466,-500.0,9.995e-05,2]
[355706703,1741487438477,-523.54638614,9.995e-05,2]
[355706706,1741487438487,-500.0,9.995e-05,2]
[355706708,1741487438497,-500.0,9.995e-05,2]
[355706709,1741487438507,-500.0,9.995e-05,2]
[355706711,1741487438517,-521.90470068,9.995e-05,2]
[355706713,1741487438527,-631.15822237,9.995e-05,2]
[355706715,1741487438537,-603.92,9.995e-05,2]
[355706716,1741487438547,-500.0,9.995e-05,2]
[355706717,1741487438557,-500.0,9.995e-05,2]
[355706718,1741487438567,-500.0,9.995e-05,2]
[355706719,1741487438577,-500.0,9.995e-05,2]
[355706720,1741487438587,-500.0,9.995e-05,2]
[355706721,1741487438600,-500.0,9.995e-05,2]
[355706722,1741487438610,-517.12077638,9.995e-05,2]
[355706723,1741487438620,-544.5,9.995e-05,2]
[355706724,1741487438631,-794.57,9.995e-05,2]
[355706725,1741487438640,-870.7,9.995e-05,2]
[355706726,1741487438650,-500.0,9.995e-05,2]
[355706727,1741487438660,-1029.92,9.995e-05,2]
[355706728,1741487438671,-500.0,9.995e-05,2]
[355706729,1741487438681,-500.0,9.995e-05,2]
[355706730,1741487438691,-500.0,9.995e-05,2]
[355706731,1741487438702,-531.84,9.995e-05,2]
[355706732,1741487438712,-500.0,9.995e-05,2]
[355706733,1741487438722,-500.0,9.995e-05,2]
[355706734,1741487438733,-611.93,9.995e-05,2]
[355706735,1741487438743,-517.86303107,9.995e-05,2]
[355706736,1741487438753,-2121.89,9.995e-05,2]
[355706737,1741487438764,-625.06,9.995e-05,2]
[355706738,1741487438774,-706.84,9.995e-05,2]
[355706739,1741487438783,-500.0,9.995e-05,2]
[355706740,1741487438793,-513.53989013,9.995e-05,2]
[355706741,1741487438804,-500.0,9.995e-05,2]
[355706742,1741487438813,-1176.89,9.995e-05,2]
[355706743,1741487438838,-500.0,9.995e-05,2]
[355706744,1741487438850,-519.720869,9.995e-05,2]
[355706745,1741487438861,-755.95,9.995e-05,2]
[355706746,1741487438871,-500.0,9.995e-05,2]
[355706747,1741487438881,-557.63,9.995e-05,2]
[355706748,1741487438892,-500.06595512,9.995e-05,2]
[355706749,1741487438903,-519.4333666,9.995e-05,2]
[355706750,1741487438913,-1835.23,9.995e-05,2]
[355706751,1741487438924,-517.07508415,9.995e-05,2]
[355706752,1741487438934,-1293.99,9.995e-05,2]
[355706753,1741487438945,-522.54945417,9.995e-05,2]
[355706754,1741487438955,-500.0,9.995e-05,2]
[355706755,1741487438965,-500.0,9.995e-05,2]
[355706756,1741487438976,-795.34,9.995e-05,2]
[355706757,1741487438987,-821.59,9.995e-05,2]
[355706758,1741487438997,-512.81162476,9.995e-05,2]
[355706759,1741487439008,-500.0,9.995e-05,2]
[355706760,1741487439019,-500.0,9.995e-05,2]
[355706761,1741487439030,-520.19676346,9.995e-05,2]
[355706762,1741487439040,-500.0,9.995e-05,2]
[355706763,1741487439052,-1741.88,9.995e-05,2]
[355706764,1741487439062,-507.01032682,9.995e-05,2]
[355706765,1741487439072,-652.13,9.995e-05,2]
[355706766,1741487439082,-520.57737937,9.995e-05,2]
[355706767,1741487439093,-1639.5544558,9.995e-05,2]
[355706768,1741487439114,-727.5155442,9.995e-05,2]
[355706769,1741487439124,-500.0,9.995e-05,2]
[355706770,1741487439135,-511.48729113,9.995e-05,2]
[355706771,1741487439145,-569.71048302,9.995e-05,2]
[355706772,1741487439156,-576.58,9.995e-05,2]
[355706773,1741487439166,-740.89,9.995e-05,2]
[355706774,1741487439177,-518.66481502,9.995e-05,2]
[355706775,1741487439187,-559.43,9.995e-05,2]
[355706776,1741487439197,-783.17,9.995e-05,2]
[355706777,1741487439207,-115.25490663,9.995e-05,2]
[355706778,1741487439221,-384.74509337,9.995e-05,2]
[355706779,1741487439232,-3434.87957614,9.995e-05,2]
[355706780,1741487439245,-464.20042386,9.995e-05,2]
[355706781,1741487439255,-500.0,9.995e-05,2]
[355706782,1741487439267,-516.12791194,9.995e-05,2]
[355706783,1741487439277,-171.00194406,9.995e-05,2]
[355706784,1741487439289,-520.60805594,9.995e-05,2]
[355706785,1741487439300,-91.99194411,9.995e-05,2]
[355706786,1741487439314,-1270.02805589,9.995e-05,2]
[355706787,1741487439332,-156.4843781,9.995e-05,2]
[355706788,1741487439345,-343.5156219,9.995e-05,2]
[355706789,1741487439356,-814.27,9.995e-05,2]
[355706790,1741487439367,-132.2143781,9.995e-05,2]
[355706791,1741487439381,-367.7856219,9.995e-05,2]
[355706792,1741487439393,-522.2174207,9.995e-05,2]
[355706793,1741487439404,-121.8469574,9.995e-05,2]
[355706794,1741487439426,-907.7330426,9.995e-05,2]
[355706795,1741487439436,-984.84,9.995e-05,2]
[355706796,1741487439446,-512.80010895,9.995e-05,2]
[355706797,1741487439457,-643.07,9.995e-05,2]
[355706798,1741487439467,-500.0,9.995e-05,2]
[355706799,1741487439479,-511.19411909,9.995e-05,2]
[355706800,1741487439490,-500.0,9.995e-05,2]
[355706801,1741487439500,-783.93,9.995e-05,2]
[355706802,1741487439511,-500.0,9.995e-05,2]
[355706803,1741487439522,-618.8410916,9.995e-05,2]
[355706804,1741487439532,-1061.76951096,9.995e-05,2]
[355706805,1741487439544,-823.07048904,9.995e-05,2]
[355706806,1741487439554,-77.41934102,9.995e-05,2]
[355706807,1741487439567,-422.58065898,9.995e-05,2]
[355706808,1741487439577,-500.0,9.995e-05,2]
[355706809,1741487439587,-976.61,9.995e-05,2]
[355706810,1741487439600,-317.07710616,9.995e-05,2]
[355706813,1741487439994,-182.92289384,9.995e-05,2]
[355706814,1741487440004,-119.22510616,9.995e-05,2]
[355706815,1741487440236,-1753.78489384,9.995e-05,2]
[355706816,1741487440246,-499.17930559,9.995e-05,2]
[355706817,1741487440257,-855.92,9.995e-05,2]
[355706818,1741487440267,-1136.82,9.995e-05,2]
[355706819,1741487440277,-500.0,9.995e-05,2]
[355706820,1741487440287,-500.0,9.995e-05,2]
[355706821,1741487440298,-8775.47,9.995e-05,2]
[355706822,1741487440308,-509.21688905,9.995e-05,2]
[355706823,1741487440318,-2177.81,9.995e-05,2]
[355706824,1741487440328,-411.26405712,9.995e-05,2]
[355706825,1741487440337,-518.42608201,9.995e-05,2]
[355706826,1741487440347,-513.06432672,9.995e-05,2]
[355706827,1741487440357,-500.0,9.995e-05,2]
[355706828,1741487440367,-500.0,9.995e-05,2]
[355706829,1741487440377,-500.0,9.995e-05,2]
[355706830,1741487440386,-1506.16,9.995e-05,2]
[355706831,1741487440395,-500.0,9.995e-05,2]
[355706832,1741487440405,-503.03763512,9.995e-05,2]
[355706833,1741487440415,-672.78,9.995e-05,2]
[355706834,1741487440424,-500.0,9.995e-05,2]
[355706835,1741487440434,-500.0,9.995e-05,2]
[355706836,1741487440443,-943.67,9.995e-05,2]
[355706837,1741487440453,-500.0,9.995e-05,2]
[355706838,1741487440463,-1034.24,9.995e-05,2]
[355706839,1741487440472,-512.13991457,9.995e-05,2]
[355706840,1741487440482,-1319.45,9.995e-05,2]
[355706841,1741487440493,-2001.52,9.995e-05,2]
[355706842,1741487440502,-500.0,9.995e-05,2]
[355706843,1741487440512,-547.66,9.995e-05,2]
[355706844,1741487440521,-549.06,9.995e-05,2]
[355706845,1741487440531,-500.0,9.995e-05,2]
[355706846,1741487440542,-500.0,9.995e-05,2]
[355706847,1741487440551,-523.13,9.995e-05,2]
[355706848,1741487440561,-1519.9,9.995e-05,2]
[355706849,1741487440570,-1032.78,9.995e-05,2]
[355706850,1741487440580,-500.0,9.995e-05,2]
[355706851,1741487440592,-4242.04,9.995e-05,2]
[355706852,1741487440602,-500.0,9.995e-05,2]
[355706853,1741487440612,-506.06486407,9.995e-05,2]
[355706854,1741487440622,-1801.55,9.995e-05,2]
[355706855,1741487440633,-1497.91,9.995e-05,2]
[355706856,1741487440643,-500.0,9.995e-05,2]
[355706857,1741487440653,-500.0,9.995e-05,2]
[355706858,1741487440663,-500.0,9.995e-05,2]
[355706859,1741487440675,-832.3,9.995e-05,2]
[355706860,1741487440685,-632.96,9.995e-05,2]
[355706861,1741487440695,-618.40347606,9.995e-05,2]
[355706862,1741487440705,-500.0,9.995e-05,2]
[355706863,1741487440715,-500.0,9.995e-05,2]
[355706864,1741487440726,-500.0,9.995e-05,2]
[355706865,1741487440736,-500.0,9.995e-05,2]
[355706866,1741487440746,-500.0,9.995e-05,2]
[355706867,1741487440758,-500.0,9.995e-05,2]
[355706868,1741487440767,-3303.27,9.995e-05,2]
[355706869,1741487440778,-593.45,9.995e-05,2]
[355706870,1741487440787,-504.80965624,9.995e-05,2]
[355706871,1741487440797,-527.22,9.995e-05,2]
[355706872,1741487440807,-554.44,9.995e-05,2]
[355706873,1741487440817,-994.74,9.995e-05,2]
[355706874,1741487440826,-500.0,9.995e-05,2]
[355706875,1741487440836,-500.0,9.995e-05,2]
[355706876,1741487440846,-500.0,9.995e-05,2]
[355706877,1741487440856,-500.0,9.995e-05,2]
[355706878,1741487440866,-500.0,9.995e-05,2]
[355706879,1741487440875,-1101.46,9.995e-05,2]
[355706880,1741487440885,-500.0,9.995e-05,2]
[355706881,1741487440895,-500.0,9.995e-05,2]
[355706882,1741487440905,-500.0,9.995e-05,2]
[355706883,1741487440914,-559.68,9.995e-05,2]
[355706884,1741487440924,-824.47,9.995e-05,2]
[355706885,1741487440934,-500.0,9.995e-05,2]
[355706886,1741487440944,-545.91,9.995e-05,2]
[355706887,1741487440954,-500.0,9.995e-05,2]
[355706888,1741487440964,-500.0,9.995e-05,2]
[355706889,1741487440973,-500.0,9.995e-05,2]
[355706890,1741487440984,-187.31460351,9.995e-05,2]
[355706891,1741487440994,-500.0,9.995e-05,2]
[355706892,1741487441004,-500.0,9.995e-05,2]
[355706893,1741487441014,-500.0,9.996e-05,2]
[355706894,1741487441023,-500.0,9.996e-05,2]
[355706895,1741487441033,-500.0,9.996e-05,2]
[355706896,1741487441043,-500.0,9.996e-05,2]
[355706897,1741487441053,-500.0,9.996e-05,2]
[355706898,1741487441063,-500.0,9.996e-05,2]
[355706899,1741487441073,-500.0,9.996e-05,2]
[355706900,1741487441083,-500.0,9.996e-05,2]
[355706901,1741487441093,-500.0,9.996e-05,2]
[355706902,1741487441102,-500.0,9.996e-05,2]
[355706903,1741487441112,-500.0,9.996e-05,2]
[355706904,1741487441122,-558.91206213,9.996e-05,2]
[355706905,1741487441133,-500.0,9.996e-05,2]
[355706906,1741487441143,-505.19481893,9.996e-05,2]
[355706907,1741487441153,-509.4941966,9.996e-05,2]
[355706908,1741487441163,-500.0,9.996e-05,2]
[355706909,1741487441173,-503.55068995,9.996e-05,2]
[355706910,1741487441183,-500.0,9.996e-05,2]
[355706911,1741487441193,-500.0,9.996e-05,2]
[355706912,1741487441204,-533.62318776,9.996e-05,2]
[355706913,1741487441214,-500.0,9.996e-05,2]
[355706914,1741487441224,-500.0,9.996e-05,2]
[355706915,1741487441235,-500.0,9.996e-05,2]
[355706916,1741487441245,-500.0,9.996e-05,2]
[355706917,1741487441257,-556.34748092,9.996e-05,2]
[355706918,1741487441267,-510.90815402,9.996e-05,2]
[355706919,1741487441277,-238.1121208,9.996e-05,2]
[355706920,1741487441287,-500.0,9.996e-05,2]
[355706921,1741487441297,-500.0,9.996e-05,2]
[355706922,1741487441308,-510.43575948,9.996e-05,2]
[355706923,1741487441318,-500.0,9.996e-05,2]
[355706924,1741487441328,-500.0,9.996e-05,2]
[355706925,1741487441343,-500.0,9.996e-05,2]
[355706926,1741487441356,-495.0,9.996e-05,2]
[355706927,1741487441366,-508.38128026,9.996e-05,2]
[355706928,1741487441377,-500.0,9.996e-05,2]
[355706929,1741487441387,-518.89997388,9.996e-05,2]
[355706930,1741487441397,-500.0,9.996e-05,2]
[355706931,1741487441408,-500.0,9.996e-05,2]
[355706932,1741487441418,-500.0,9.996e-05,2]
[355706933,1741487441428,-500.0,9.996e-05,2]
[355706934,1741487441438,-500.0,9.996e-05,2]
[355706935,1741487441447,-218.59879616,9.996e-05,2]
[355706936,1741487441457,-500.0,9.996e-05,2]
[355706937,1741487441467,-420.02120376,9.996e-05,2]
[355706938,1741487441476,-348.69,9.996e-05,2]
[355706939,1741487441487,-500.0,9.996e-05,2]
[355706940,1741487441496,-507.2625605,9.996e-05,2]
[355706941,1741487441506,-215.86002868,9.996e-05,2]
[355706942,1741487441516,-505.92502095,9.996e-05,2]
[355706943,1741487441525,-500.0,9.996e-05,2]
[355706944,1741487441535,-523.35017377,9.996e-05,2]
[355706945,1741487441546,-506.8389234,9.996e-05,2]
[355706946,1741487441555,-517.2269085,9.996e-05,2]
[355706947,1741487441565,-509.22583939,9.996e-05,2]
[355706948,1741487441575,-510.64707582,9.996e-05,2]
[355706949,1741487441588,-500.0,9.996e-05,2]
[355706950,1741487441604,-508.52630516,9.996e-05,2]
[355706951,1741487441613,-507.97041882,9.996e-05,2]
[355706952,1741487441623,-508.47853314,9.996e-05,2]
[355706953,1741487441633,-508.40427082,9.996e-05,2]
[355706954,1741487441644,-506.71251063,9.996e-05,2]
[355706955,1741487441654,-510.02348426,9.996e-05,2]
[355706956,1741487441664,-512.68454171,9.996e-05,2]
[355706957,1741487441675,-507.47067265,9.996e-05,2]
[355706958,1741487441685,-511.25745116,9.996e-05,2]
[355706959,1741487441696,-507.36840467,9.996e-05,2]
[355706960,1741487441706,-509.44786952,9.996e-05,2]
[355706961,1741487441716,-503.56080442,9.996e-05,2]
[355706962,1741487441727,-500.0,9.996e-05,2]
[355706963,1741487441737,-500.0,9.996e-05,2]
[355706964,1741487441748,-504.2743247,9.996e-05,2]
[355706965,1741487441758,-504.69633072,9.996e-05,2]
[355706966,1741487441768,-500.0,9.996e-05,2]
[355706967,1741487441778,-503.29526578,9.996e-05,2]
[355706968,1741487441789,-500.0,9.996e-05,2]
[355706969,1741487441799,-504.62892078,9.996e-05,2]
[355706970,1741487441809,-536.04573223,9.996e-05,2]
[355706971,1741487441819,-505.47521577,9.996e-05,2]
[355706972,1741487441829,-514.60575319,9.996e-05,2]
[355706973,1741487441840,-500.0,9.996e-05,2]
[355706974,1741487441850,-509.7740912,9.996e-05,2]
[355706975,1741487441860,-513.00070147,9.996e-05,2]
[355706976,1741487441871,-515.42885761,9.996e-05,2]
[355706977,1741487441881,-185.53796669,9.996e-05,2]
[355706978,1741487441891,-511.93769455,9.996e-05,2]
[355706979,1741487441901,-514.40154226,9.996e-05,2]
[355706980,1741487441911,-211.54582476,9.996e-05,2]
[355706981,1741487441922,-515.35439625,9.996e-05,2]
[355706982,1741487441932,-328.62672386,9.996e-05,2]
[355706983,1741487441943,-513.45453224,9.996e-05,2]
[355706984,1741487441953,-517.51245933,9.996e-05,2]
[355706985,1741487442207,-183.66252244,9.996e-05,2]
[355706986,1741487442217,-513.04404411,9.996e-05,2]
[355706987,1741487442227,-505.04155894,9.996e-05,2]
[355706988,1741487442238,-510.45695665,9.996e-05,2]
[355706989,1741487442247,-502.06805981,9.996e-05,2]
[355706990,1741487442257,-509.63944448,9.996e-05,2]
[355706991,1741487442267,-508.62536547,9.996e-05,2]
[355706992,1741487442277,-517.90470124,9.996e-05,2]
[355706993,1741487442286,-515.23803961,9.996e-05,2]
[355706994,1741487442296,-505.68008862,9.996e-05,2]
[355706995,1741487442306,-514.39532322,9.996e-05,2]
[355706996,1741487442316,-510.75240597,9.996e-05,2]
[355706997,1741487442325,-510.7386337,9.996e-05,2]
[355706998,1741487442335,-519.89975005,9.996e-05,2]
[355706999,1741487442345,-500.0,9.996e-05,2]
[355707000,1741487442354,-513.4098664,9.996e-05,2]
[355707001,1741487442364,-175.52542309,9.996e-05,2]
[355707002,1741487442374,-508.54345055,9.996e-05,2]
[355707003,1741487442384,-512.45243014,9.996e-05,2]
[355707004,1741487442393,-504.95578376,9.996e-05,2]
[355707005,1741487442403,-515.45134534,9.996e-05,2]
[355707006,1741487442413,-514.2309611,9.996e-05,2]
[355707007,1741487442422,-513.52036041,9.996e-05,2]
[355707008,1741487442433,-517.47711482,9.996e-05,2]
[355707009,1741487442442,-500.0,9.996e-05,2]
[355707010,1741487442452,-507.8127821,9.996e-05,2]
[355707011,1741487442462,-509.92080822,9.996e-05,2]
[355707012,1741487442471,-158.16,9.996e-05,2]
[355707013,1741487442483,-510.38741163,9.996e-05,2]
[355707014,1741487442492,-511.02149131,9.996e-05,2]
[355707015,1741487442502,-500.0,9.996e-05,2]
[355707016,1741487442512,-512.99176501,9.996e-05,2]
[355707017,1741487442521,-500.36558825,9.996e-05,2]
[355707018,1741487442530,-511.91849094,9.996e-05,2]
[355707019,1741487442539,-505.18619306,9.996e-05,2]
[355707020,1741487442550,-517.35993778,9.996e-05,2]
[355707021,1741487442559,-509.5589014,9.996e-05,2]
[355707022,1741487442569,-514.8078143,9.996e-05,2]
[355707023,1741487442579,-511.6058964,9.996e-05,2]
[355707024,1741487442589,-511.52339817,9.996e-05,2]
[355707025,1741487442602,-512.35354066,9.996e-05,2]
[355707026,1741487442611,-506.43443181,9.996e-05,2]
[355707027,1741487442621,-506.23509387,9.996e-05,2]
[355707029,1741487442633,-500.0,9.996e-05,2]
[355707030,1741487442643,-512.67034316,9.996e-05,2]
[355707031,1741487442652,-510.88978144,9.996e-05,2]
[355707032,1741487442662,-509.15242878,9.996e-05,2]
[355707033,1741487442672,-509.04564376,9.996e-05,2]
[355707034,1741487442682,-511.47094766,9.996e-05,2]
[355707035,1741487442691,-508.03338799,9.996e-05,2]
[355707036,1741487442701,-494.95617695,9.996e-05,2]
[355707037,1741487442710,-509.57334685,9.996e-05,2]
[355707038,1741487442720,-500.0,9.996e-05,2]
[355707039,1741487442729,-506.97042769,9.996e-05,2]
[355707040,1741487442739,-510.49536016,9.996e-05,2]
[355707041,1741487442748,-518.62749084,9.996e-05,2]
[355707042,1741487442764,-503.42974353,9.996e-05,2]
[355707043,1741487442781,-585.86854489,9.996e-05,2]
[355707044,1741487442791,-500.65981707,9.996e-05,2]
[355707046,1741487442800,-513.21342648,9.996e-05,2]
[355707047,1741487442811,-511.56788049,9.996e-05,2]
[355707049,1741487442821,-511.45901406,9.996e-05,2]